[Event "FIDE WYCC Girls U18 2023"]
[Site "Montesilvano"]
[Date "2023.11.15"]
[Round "3.32"]
[White "Nielsen-Refs, Ingrid Elmer"]
[Black "Changkachith, Alyssa"]
[Result "0-1"]
[ECO "D35"]
[WhiteElo "1676"]
[BlackElo "1147"]
[Annotator "NA"]
[PlyCount "170"]
[EventDate "2023.11.13"]
[EventType "swiss"]
[EventCountry "ITA"]
[SourceTitle "playchess.com"]
[Source "ChessBase"]
[SourceQuality "1"]
[TimeControl "40/5400+30:1800+30"]

1. d4 {[%emt 0:00:06]} d5 {[%emt 0:00:12]} 2. c4 {[%emt 0:00:10]} e6 {[%emt 0:00:09]} 3. Nc3 {[%emt 0:00:24]} Nf6 {[%emt 0:00:31]} 4. cxd5 {[%emt 0:02:32]} exd5 {[%emt 0:00:53]} 5. Bg5 {[%emt 0:00:49]} Be7 {[%emt 0:00:49]} 6. Nf3 {[%emt 0:02:07]} Be6 {[%emt 0:03:14]} 7. e3 {[%emt 0:02:10]} h6 {[%emt 0:00:31]} 8. Bh4 {[%emt 0:01:30]} Nh5 {[%emt 0:02:45]} 9. Bxe7 {[%emt 0:00:30]} Qxe7 {[%emt 0:00:03]} 10. Bd3 {[%emt 0:04:56]} Nd7 {[%emt 0:02:00]} 11. Qb3 {[%emt 0:05:40]} Nb6 {[%emt 0:04:33]} 12. Rc1 {[%emt 0:04:10]} c6 {[%emt 0:00:33]} 13. O-O {[%emt 0:01:35]} O-O {[%emt 0:00:43]} 14. Qc2 {[%emt 0:02:04]} Nf6 {[%emt 0:04:40]} 15. Nd2 {[%emt 0:05:33]} Rac8 {[%emt 0:05:56]} 16. Nb3 {[%emt 0:13:01]} Nbd7 {[%emt 0:02:49]} 17. Qd2 {[%emt 0:06:39]} Rfd8 {[%emt 0:19:43]} 18. Rfe1 {[%emt 0:14:03]} c5 {[%emt 0:03:41]} 19. dxc5 {[%emt 0:00:28]} Nxc5 {[%emt 0:00:22]} 20. Nxc5 {[%emt 0:03:42]} Rxc5 {[%emt 0:02:41]} 21. Nb5 {[%emt 0:03:23]} a6 {[%emt 0:18:21]} 22. Nd4 {[%emt 0:01:39]} Rdc8 {[%emt 0:06:45]} 23. Nxe6 {[%emt 0:08:10]} Qxe6 {[%emt 0:02:10]} 24. Rxc5 {[%emt 0:02:37]} Rxc5 {[%emt 0:00:08]} 25. Qb4 {[%emt 0:01:38]} Qc6 {[%emt 0:00:50]} 26. Qd2 {[%emt 0:03:39]} Ne4 {[%emt 0:01:32]} 27. Qd1 {[%emt 0:02:31]} Qb6 {[%emt 0:03:13]} 28. Re2 {[%emt 0:02:12]} Qc6 {[%emt 0:06:18]} 29. Rc2 {[%emt 0:00:41]} Rxc2 {[%emt 0:02:44]} 30. Qxc2 {[%emt 0:00:39]} Qxc2 {[%emt 0:00:03]} 31. Bxc2 {[%emt 0:00:02]} Kf8 {[%emt 0:00:38]} 32. Bb3 {[%emt 0:01:28]} Nf6 {[%emt 0:00:11]} 33. Kf1 {[%emt 0:00:53]} Ke7 {[%emt 0:00:20]} 34. Ke2 {[%emt 0:00:18]} Kd6 {[%emt 0:00:08]} 35. f3 {[%emt 0:01:03]} Nd7 {[%emt 0:00:59]} 36. Kd2 {[%emt 0:01:36]} f6 {[%emt 0:01:34]} 37. Kc3 {[%emt 0:00:54]} Kc5 {[%emt 0:01:00]} 38. Bc2 {[%emt 0:00:43]} Ne5 {[%emt 0:01:23]} 39. b3 {[%emt 0:01:56]} Nc6 {[%emt 0:00:31]} 40. a3 {[%emt 0:00:00]} a5 {[%emt 0:00:00]} 41. Bg6 {[%emt 0:07:27]} b5 {[%emt 0:01:22]} 42. Be8 {[%emt 0:05:11]} b4+ {[%emt 0:01:01]} 43. Kb2 {[%emt 0:04:06]} Ne5 {[%emt 0:00:55]} 44. axb4+ {[%emt 0:01:57]} axb4 {[%emt 0:00:02]} 45. Kc2 {[%emt 0:00:50]} d4 {[%emt 0:01:18]} 46. exd4+ {[%emt 0:00:41]} Kxd4 {[%emt 0:00:02]} 47. Kd2 {[%emt 0:01:25]} Nd3 {[%emt 0:00:10]} 48. Bb5 {[%emt 0:01:21]} Nf4 {[%emt 0:00:48]} 49. Bf1 {[%emt 0:00:48]} Nd5 {[%emt 0:00:29]} 50. Be2 {[%emt 0:01:27]} Ne3 {[%emt 0:05:09]} 51. g3 {[%emt 0:01:13]} g5 {[%emt 0:02:45]} 52. Bd3 {[%emt 0:01:55]} h5 {[%emt 0:04:05]} 53. Be2 {[%emt 0:05:50]} h4 {[%emt 0:01:50]} 54. g4 {[%emt 0:00:22]} Nd5 {[%emt 0:02:07]} 55. Bc4 {[%emt 0:01:30]} Nf4 {[%emt 0:02:17]} 56. Bf1 {[%emt 0:00:25]} Nd5 {[%emt 0:02:14]} 57. Be2 {[%emt 0:00:59]} Ne3 {[%emt 0:03:38]} 58. Bb5 {[%emt 0:01:39]} Nd5 {[%emt 0:11:02]} 59. Be2 {[%emt 0:00:42]} Ne7 {[%emt 0:01:30]} 60. Bd3 {[%emt 0:00:31]} Ke5 {[%emt 0:01:00]} 61. Ke3 {[%emt 0:01:08]} Nd5+ {[%emt 0:00:25]} 62. Kd2 {[%emt 0:00:19]} Kf4 {[%emt 0:00:24]} 63. Be4 {[%emt 0:01:00]} Ne3 {[%emt 0:00:13]} 64. Ke2 {[%emt 0:00:41]} f5 {[%emt 0:00:45]} 65. gxf5 {[%emt 0:00:32]} Nxf5 {[%emt 0:00:01]} 66. Bd5 {[%emt 0:00:42]} Nd4+ {[%emt 0:00:37]} 67. Kf2 {[%emt 0:00:11]} h3 {[%emt 0:00:22]} 68. Bb7 {[%emt 0:00:51]} Nxb3 {[%emt 0:00:03]} 69. Bd5 {[%emt 0:00:29]} Nd4 {[%emt 0:00:02]} 70. Bb7 {[%emt 0:00:31]} b3 {[%emt 0:00:19]} 71. Bd5 {[%emt 0:00:30]} b2 {[%emt 0:00:02]} 72. Ba2 {[%emt 0:00:11]} Nxf3 {[%emt 0:00:17]} 73. Bb1 {[%emt 0:00:34]} Nxh2 74. Kg1 {[%emt 0:00:38]} Nf3+ {[%emt 0:00:29]} 75. Kh1 {[%emt 0:00:29]} Nd2 {[%emt 0:00:08]} 76. Bd3 {[%emt 0:00:38]} b1=Q+ {[%emt 0:00:13]} 77. Bxb1 {[%emt 0:00:08]} Nxb1 {[%emt 0:00:10]} 78. Kh2 {[%emt 0:00:04]} g4 {[%emt 0:00:18]} 79. Kh1 {[%emt 0:00:04]} Nd2 {[%emt 0:00:24]} 80. Kh2 {[%emt 0:00:19]} Kf3 {[%emt 0:00:42]} 81. Kg1 {[%emt 0:01:02]} Kg3 {[%emt 0:00:27]} 82. Kh1 {[%emt 0:00:17]} Ne4 {[%emt 0:00:10]} 83. Kg1 {[%emt 0:00:12]} h2+ {[%emt 0:00:33]} 84. Kf1 {[%emt 0:00:25]} h1=Q+ {[%emt 0:00:10]} 85. Ke2 {[%emt 0:00:10]} Qf3+ {[%emt 0:00:15]} 0-1

[Event "FIDE WYCC Girls U18 2023"]
[Site "Montesilvano"]
[Date "2023.11.15"]
[Round "3.33"]
[White "Yim, Jay"]
[Black "Swara Lakshmi S Nair"]
[Result "1/2-1/2"]
[ECO "B52"]
[WhiteElo "1310"]
[BlackElo "1659"]
[Annotator "NA"]
[PlyCount "140"]
[EventDate "2023.11.13"]
[EventType "swiss"]
[EventCountry "ITA"]
[SourceTitle "playchess.com"]
[Source "ChessBase"]
[SourceQuality "1"]
[TimeControl "40/5400+30:1800+30"]

1. e4 {[%emt 0:00:02]} c5 {[%emt 0:00:32]} 2. Nf3 {[%emt 0:00:07]} d6 {[%emt 0:00:16]} 3. Bb5+ {[%emt 0:00:17]} Bd7 {[%emt 0:00:12]} 4. c4 {[%emt 0:00:26]} a6 {[%emt 0:04:39]} 5. Bxd7+ {[%emt 0:01:35]} Qxd7 {[%emt 0:00:06]} 6. Nc3 {[%emt 0:01:05]} Nc6 {[%emt 0:01:42]} 7. O-O {[%emt 0:01:00]} g6 {[%emt 0:03:47]} 8. d3 {[%emt 0:02:15]} Bg7 {[%emt 0:00:18]} 9. Rb1 {[%emt 0:03:09]} e6 {[%emt 0:05:14]} 10. a3 {[%emt 0:04:59]} Nge7 {[%emt 0:01:07]} 11. Re1 {[%emt 0:01:08]} O-O {[%emt 0:04:03]} 12. Bf4 {[%emt 0:14:24]} Rad8 {[%emt 0:09:47]} 13. Na4 {[%emt 0:08:18]} b5 {[%emt 0:09:34]} 14. Nc3 {[%emt 0:03:43]} Nd4 {[%emt 0:14:02]} 15. Nxd4 {[%emt 0:09:27]} cxd4 {[%emt 0:00:15]} 16. Ne2 {[%emt 0:00:24]} Rc8 {[%emt 0:08:35]} 17. Rc1 {[%emt 0:08:05]} f5 {[%emt 0:06:25]} 18. cxb5 {[%emt 0:05:56]} Rxc1 {[%emt 0:08:03]} 19. Qxc1 {[%emt 0:01:16]} axb5 {[%emt 0:01:51]} 20. Qd2 {[%emt 0:05:00]} Rc8 {[%emt 0:05:26]} 21. Rc1 {[%emt 0:05:32]} fxe4 {[%emt 0:02:34]} 22. dxe4 {[%emt 0:02:03]} e5 {[%emt 0:00:21]} 23. Bg5 {[%emt 0:01:16]} Rc5 {[%emt 0:00:22]} 24. Qd3 {[%emt 0:08:29]} Nc8 {[%emt 0:01:33]} 25. Bd2 {[%emt 0:07:51]} Qc6 {[%emt 0:03:57]} 26. f3 {[%emt 0:04:17]} Nb6 {[%emt 0:00:58]} 27. Kf2 {[%emt 0:00:34]} Kf8 {[%emt 0:01:06]} 28. Qb3 {[%emt 0:01:06]} Rc4 {[%emt 0:00:39]} 29. Qd1 {[%emt 0:00:21]} Rxc1 {[%emt 0:03:17]} 30. Nxc1 {[%emt 0:00:19]} Ke7 {[%emt 0:00:57]} 31. Nd3 {[%emt 0:00:25]} Kd7 {[%emt 0:00:46]} 32. Bb4 {[%emt 0:00:51]} Nc4 {[%emt 0:03:27]} 33. Qc1 {[%emt 0:00:19]} Ne3 {[%emt 0:00:09]} 34. Qxc6+ {[%emt 0:00:31]} Kxc6 {[%emt 0:00:02]} 35. Bd2 {[%emt 0:00:20]} Nc4 {[%emt 0:00:07]} 36. Nb4+ {[%emt 0:00:22]} Kc5 {[%emt 0:00:11]} 37. Nd3+ {[%emt 0:00:13]} Kb6 {[%emt 0:00:41]} 38. Bc1 {[%emt 0:00:28]} Na5 {[%emt 0:00:06]} 39. Nb4 {[%emt 0:00:42]} Nc6 {[%emt 0:01:07]} 40. Nd5+ {[%emt 0:00:00]} Kb7 {[%emt 0:00:00]} 41. Ke2 {[%emt 0:02:15]} Kc8 {[%emt 0:01:41]} 42. Bd2 {[%emt 0:04:33]} Kd7 {[%emt 0:01:42]} 43. Kd3 {[%emt 0:01:56]} h6 {[%emt 0:03:13]} 44. b3 {[%emt 0:01:02]} Ne7 {[%emt 0:00:42]} 45. a4 {[%emt 0:01:30]} Nxd5 {[%emt 0:01:00]} 46. exd5 {[%emt 0:00:07]} bxa4 {[%emt 0:00:04]} 47. bxa4 {[%emt 0:00:05]} Kc7 {[%emt 0:00:09]} 48. Ba5+ {[%emt 0:01:18]} Kb7 {[%emt 0:00:09]} 49. Bb4 {[%emt 0:01:13]} Bf8 {[%emt 0:00:11]} 50. Kc4 {[%emt 0:00:29]} Kb6 {[%emt 0:00:33]} 51. h4 {[%emt 0:03:58]} Be7 {[%emt 0:02:17]} 52. g3 {[%emt 0:00:16]} h5 {[%emt 0:00:45]} 53. Bd2 {[%emt 0:00:31]} Ka6 {[%emt 0:00:32]} 54. Bb4 {[%emt 0:02:54]} Kb6 {[%emt 0:00:08]} 55. Be1 {[%emt 0:01:46]} Ka6 {[%emt 0:01:06]} 56. g4 {[%emt 0:03:37]} Bd8 {[%emt 0:01:39]} 57. Bg3 {[%emt 0:05:08]} Ka5 {[%emt 0:00:19]} 58. g5 {[%emt 0:01:21]} Kxa4 {[%emt 0:01:23]} 59. f4 {[%emt 0:00:27]} exf4 {[%emt 0:00:26]} 60. Bxf4 {[%emt 0:00:04]} Bc7 {[%emt 0:00:05]} 61. Kxd4 Kb5 {[%emt 0:03:01]} 62. Bg3 {[%emt 0:04:25]} Kb4 {[%emt 0:01:29]} 63. Be1+ {[%emt 0:00:22]} Kb3 {[%emt 0:00:31]} 64. Kd3 {[%emt 0:00:58]} Bb6 {[%emt 0:00:12]} 65. Bg3 {[%emt 0:00:20]} Bc5 {[%emt 0:00:05]} 66. Be1 {[%emt 0:01:11]} Bb6 {[%emt 0:00:07]} 67. Bg3 {[%emt 0:00:20]} Bc5 {[%emt 0:00:06]} 68. Be1 {[%emt 0:00:07]} Bb6 {[%emt 0:00:12]} 69. Bg3 {[%emt 0:00:09]} Bc5 {[%emt 0:00:05]} 70. Be1 {[%emt 0:00:09]} Bb6 {[%emt 0:00:07]} 1/2-1/2

[Event "FIDE WYCC Girls U18 2023"]
[Site "Montesilvano"]
[Date "2023.11.15"]
[Round "3.34"]
[White "Gonzalez Romo, Greshya Jocelyn"]
[Black "Belattar, Ines"]
[Result "1-0"]
[ECO "C02"]
[WhiteElo "1494"]
[BlackElo "1623"]
[Annotator "NA"]
[PlyCount "121"]
[EventDate "2023.11.13"]
[EventType "swiss"]
[EventCountry "ITA"]
[SourceTitle "playchess.com"]
[Source "ChessBase"]
[SourceQuality "1"]
[TimeControl "40/5400+30:1800+30"]

1. e4 {[%emt 0:00:05]} e6 {[%emt 0:00:26]} 2. d4 {[%emt 0:00:26]} d5 {[%emt 0:00:08]} 3. e5 {[%emt 0:00:24]} c5 {[%emt 0:00:10]} 4. c3 {[%emt 0:00:11]} Nc6 {[%emt 0:00:21]} 5. Nf3 {[%emt 0:00:47]} Qb6 {[%emt 0:00:39]} 6. a3 {[%emt 0:01:40]} Nh6 {[%emt 0:06:53]} 7. b4 {[%emt 0:02:37]} cxd4 {[%emt 0:02:32]} 8. cxd4 {[%emt 0:00:11]} Nf5 {[%emt 0:00:53]} 9. Be3 {[%emt 0:01:56]} Bd7 {[%emt 0:02:02]} 10. Be2 {[%emt 0:05:47]} Rc8 {[%emt 0:03:10]} 11. O-O {[%emt 0:02:05]} Be7 {[%emt 0:01:01]} 12. Qd3 {[%emt 0:05:09]} O-O {[%emt 0:17:12]} 13. Nbd2 {[%emt 0:09:41]} Rc7 {[%emt 0:11:28]} 14. Nb3 {[%emt 0:06:18]} Rfc8 {[%emt 0:22:51]} 15. Nc5 {[%emt 0:02:15]} a5 {[%emt 0:01:23]} 16. Na4 {[%emt 0:04:53]} Qa7 {[%emt 0:10:40]} 17. b5 {[%emt 0:01:21]} Ncxd4 {[%emt 0:01:36]} 18. Bxd4 {[%emt 0:05:12]} Nxd4 {[%emt 0:00:28]} 19. Qxd4 {[%emt 0:02:31]} Qxd4 {[%emt 0:01:18]} 20. Nxd4 {[%emt 0:00:05]} Bc5 {[%emt 0:10:24]} 21. Nb3 {[%emt 0:05:55]} b6 {[%emt 0:00:24]} 22. Rfc1 {[%emt 0:06:37]} f6 {[%emt 0:02:09]} 23. exf6 {[%emt 0:00:32]} gxf6 {[%emt 0:00:04]} 24. Nbxc5 {[%emt 0:00:14]} bxc5 25. Nb6 {[%emt 0:00:20]} Rd8 {[%emt 0:01:13]} 26. Nxd7 {[%emt 0:00:24]} Rdxd7 {[%emt 0:00:05]} 27. b6 {[%emt 0:01:57]} Rc8 {[%emt 0:01:17]} 28. Ba6 {[%emt 0:00:29]} Rb8 {[%emt 0:00:10]} 29. Rab1 {[%emt 0:08:07]} c4 {[%emt 0:00:39]} 30. Kf1 {[%emt 0:02:02]} Rd6 {[%emt 0:00:49]} 31. a4 {[%emt 0:00:52]} Rdxb6 {[%emt 0:00:30]} 32. Rxb6 {[%emt 0:00:08]} Rxb6 {[%emt 0:00:03]} 33. Bb5 {[%emt 0:00:12]} Kf7 {[%emt 0:00:23]} 34. Ke2 {[%emt 0:00:15]} e5 {[%emt 0:00:34]} 35. Ke3 {[%emt 0:01:08]} d4+ {[%emt 0:00:27]} 36. Ke4 {[%emt 0:00:12]} c3 {[%emt 0:00:09]} 37. f4 {[%emt 0:00:27]} Rd6 {[%emt 0:01:16]} 38. fxe5 {[%emt 0:01:02]} fxe5 {[%emt 0:01:13]} 39. Kxe5 {[%emt 0:00:04]} Ke7 {[%emt 0:00:33]} 40. Ke4 {[%emt 0:00:00]} Ke6 {[%emt 0:00:00]} 41. Re1 {[%emt 0:02:43]} Kf7 {[%emt 0:03:06]} 42. Kd3 {[%emt 0:00:56]} Kf6 {[%emt 0:02:25]} 43. Re2 {[%emt 0:03:47]} Rd8 {[%emt 0:02:37]} 44. Bc4 {[%emt 0:02:57]} Kf5 {[%emt 0:01:43]} 45. Bb3 {[%emt 0:01:06]} Rd6 {[%emt 0:07:22]} 46. Bc2 {[%emt 0:00:31]} Kf6 {[%emt 0:05:29]} 47. Re4 {[%emt 0:00:38]} Rd5 {[%emt 0:03:01]} 48. Rxd4 {[%emt 0:01:11]} Rh5 {[%emt 0:01:22]} 49. h3 {[%emt 0:00:34]} Rg5 {[%emt 0:00:17]} 50. Rg4 {[%emt 0:00:33]} Rc5 {[%emt 0:00:40]} 51. Kd4 {[%emt 0:00:27]} Rc7 {[%emt 0:01:14]} 52. Rg3 {[%emt 0:00:30]} h6 {[%emt 0:01:55]} 53. Rg6+ {[%emt 0:00:19]} Kf7 {[%emt 0:00:33]} 54. Rxh6 {[%emt 0:00:08]} Rc8 {[%emt 0:00:57]} 55. Ra6 {[%emt 0:00:21]} Rd8+ {[%emt 0:02:10]} 56. Kxc3 {[%emt 0:00:10]} Rc8+ {[%emt 0:00:06]} 57. Kd2 {[%emt 0:00:16]} Rc5 {[%emt 0:00:27]} 58. Bd3 {[%emt 0:00:30]} Rd5 {[%emt 0:00:37]} 59. Ke3 {[%emt 0:00:11]} Rc5 {[%emt 0:00:45]} 60. g4 {[%emt 0:01:04]} Kg7 {[%emt 0:00:47]} 61. h4 1-0

[Event "FIDE WYCC Girls U18 2023"]
[Site "Montesilvano"]
[Date "2023.11.15"]
[Round "3.35"]
[White "Ajradinoska, Indzi"]
[Black "Chavez Echeverria, Ana Karen"]
[Result "1/2-1/2"]
[ECO "D02"]
[WhiteElo "1594"]
[BlackElo "1230"]
[Annotator "NA"]
[PlyCount "123"]
[EventDate "2023.11.13"]
[EventType "swiss"]
[EventCountry "ITA"]
[SourceTitle "playchess.com"]
[Source "ChessBase"]
[SourceQuality "1"]
[TimeControl "40/5400+30:1800+30"]

1. d4 {[%emt 0:00:03]} d5 {[%emt 0:00:23]} 2. Nf3 {[%emt 0:00:04]} Bf5 {[%emt 0:02:02]} 3. e3 {[%emt 0:00:07]} Nf6 {[%emt 0:02:40]} 4. Be2 {[%emt 0:00:43]} e6 {[%emt 0:02:11]} 5. c3 {[%emt 0:00:05]} c5 {[%emt 0:00:41]} 6. O-O {[%emt 0:00:53]} Nc6 {[%emt 0:00:13]} 7. Nbd2 {[%emt 0:02:58]} Rc8 {[%emt 0:02:18]} 8. h3 {[%emt 0:05:02]} Ne4 {[%emt 0:04:45]} 9. Ne5 {[%emt 0:08:59]} Nxe5 {[%emt 0:01:18]} 10. dxe5 {[%emt 0:00:07]} a6 {[%emt 0:03:22]} 11. c4 {[%emt 0:04:50]} Be7 {[%emt 0:05:13]} 12. Nxe4 {[%emt 0:03:31]} Bxe4 {[%emt 0:01:28]} 13. f3 {[%emt 0:00:16]} Bf5 {[%emt 0:18:06]} 14. Qb3 {[%emt 0:00:30]} Qd7 {[%emt 0:00:30]} 15. Rd1 d4 {[%emt 0:08:10]} 16. Kh1 {[%emt 0:06:10]} O-O {[%emt 0:01:33]} 17. exd4 {[%emt 0:01:27]} cxd4 {[%emt 0:00:16]} 18. Be3 {[%emt 0:00:48]} Bc5 {[%emt 0:07:53]} 19. Rd2 {[%emt 0:01:09]} f6 {[%emt 0:00:10]} 20. Bf4 {[%emt 0:01:36]} Qc7 {[%emt 0:06:27]} 21. Re1 {[%emt 0:06:59]} fxe5 {[%emt 0:01:28]} 22. Bh2 {[%emt 0:00:01]} Bd6 {[%emt 0:01:22]} 23. Bf1 {[%emt 0:03:05]} e4 {[%emt 0:05:20]} 24. Bxd6 {[%emt 0:04:21]} Qxd6 {[%emt 0:00:47]} 25. fxe4 {[%emt 0:00:21]} Bxe4 {[%emt 0:00:22]} 26. Qe3 {[%emt 0:01:43]} dxe3 {[%emt 0:02:35]} 27. Rxd6 {[%emt 0:00:04]} Rf6 {[%emt 0:01:38]} 28. Kh2 {[%emt 0:02:44]} Rcf8 {[%emt 0:00:56]} 29. Rxe3 {[%emt 0:01:13]} Bb1 {[%emt 0:02:42]} 30. Be2 {[%emt 0:01:28]} Bxa2 {[%emt 0:02:00]} 31. Rb6 {[%emt 0:00:17]} R8f7 {[%emt 0:02:29]} 32. Bd3 {[%emt 0:03:18]} e5 {[%emt 0:05:41]} 33. Rb4 {[%emt 0:02:47]} Re7 {[%emt 0:05:41]} 34. b3 {[%emt 0:01:29]} Rf2 {[%emt 0:00:17]} 35. Be4 {[%emt 0:00:31]} a5 {[%emt 0:01:33]} 36. Ra4 {[%emt 0:01:02]} b6 {[%emt 0:00:22]} 37. Ra3 {[%emt 0:00:30]} Rb2 {[%emt 0:01:04]} 38. Rd3 {[%emt 0:01:11]} g6 {[%emt 0:01:02]} 39. Bd5+ {[%emt 0:02:09]} Kg7 {[%emt 0:00:03]} 40. Re3 {[%emt 0:00:00]} Kf6 {[%emt 0:00:00]} 41. h4 {[%emt 0:00:41]} Bb1 {[%emt 0:04:45]} 42. c5 {[%emt 0:01:24]} Rd7 {[%emt 0:05:39]} 43. Rf3+ {[%emt 0:04:18]} Ke7 {[%emt 0:02:33]} 44. Rf7+ {[%emt 0:02:42]} Kd8 {[%emt 0:00:13]} 45. Rxd7+ {[%emt 0:01:03]} Kxd7 {[%emt 0:00:05]} 46. cxb6 {[%emt 0:00:05]} Ra2 {[%emt 0:02:05]} 47. Ra4 {[%emt 0:08:12]} Rxa4 {[%emt 0:00:10]} 48. bxa4 {[%emt 0:00:01]} Bc2 {[%emt 0:00:17]} 49. Kg3 {[%emt 0:00:17]} Bxa4 {[%emt 0:01:01]} 50. Kf2 {[%emt 0:01:25]} Bb5 {[%emt 0:00:37]} 51. Ke3 {[%emt 0:00:41]} Kc8 {[%emt 0:00:56]} 52. Ke4 {[%emt 0:00:27]} Ba6 {[%emt 0:00:18]} 53. Kxe5 {[%emt 0:00:45]} Bb7 {[%emt 0:00:09]} 54. Be6+ {[%emt 0:00:19]} Kb8 {[%emt 0:00:17]} 55. g3 {[%emt 0:00:11]} a4 {[%emt 0:00:25]} 56. Kf6 {[%emt 0:01:36]} Bc8 {[%emt 0:00:53]} 57. Bd5 {[%emt 0:01:01]} a3 {[%emt 0:01:36]} 58. Kg7 {[%emt 0:00:28]} Bb7 {[%emt 0:01:23]} 59. Be6 {[%emt 0:01:09]} Be4 {[%emt 0:00:39]} 60. Kxh7 {[%emt 0:00:48]} Kb7 {[%emt 0:00:11]} 61. Kh6 {[%emt 0:01:00]} Kxb6 {[%emt 0:00:21]} 62. h5 {[%emt 0:00:08]} 1/2-1/2

[Event "FIDE WYCC Girls U18 2023"]
[Site "Montesilvano"]
[Date "2023.11.16"]
[Round "4.1"]
[White "Luong, Hoang Tu Linh"]
[Black "Balabayeva, Xeniya"]
[Result "0-1"]
[ECO "D35"]
[WhiteElo "1887"]
[BlackElo "2192"]
[Annotator "RC"]
[PlyCount "68"]
[EventDate "2023.11.13"]
[EventType "swiss"]
[EventCountry "ITA"]
[SourceTitle "playchess.com"]
[Source "ChessBase"]
[SourceQuality "1"]
[TimeControl "40/5400+30:1800+30"]

1. d4 {[%emt 0:00:03]} d5 {[%emt 0:00:11]} 2. c4 {[%emt 0:00:09]} e6 {[%emt 0:00:06]} 3. Nc3 {[%emt 0:00:06]} Nf6 {[%emt 0:00:07]} 4. cxd5 {[%emt 0:00:14]} exd5 {[%emt 0:00:07]} 5. Bg5 {[%emt 0:00:08]} Be7 {[%emt 0:00:15]} 6. Qc2 {[%emt 0:00:15]} c6 {[%emt 0:00:10]} 7. e3 {[%emt 0:00:10]} O-O {[%emt 0:01:10]} 8. Bd3 {[%emt 0:00:19]} Nbd7 {[%emt 0:00:08]} 9. Nf3 {[%emt 0:00:25]} Re8 {[%emt 0:00:10]} 10. h3 {[%emt 0:00:29]} Ne4 {[%emt 0:01:15]} 11. Bf4 {[%emt 0:04:19]} Ndf6 {[%emt 0:00:35]} 12. Ne5 {[%emt 0:02:22]} Nxc3 {[%emt 0:40:13]} 13. bxc3 {[%emt 0:01:58]} Bd6 {[%emt 0:03:21]} 14. O-O {[%emt 0:02:02]} Qc7 {[%emt 0:03:09]} 15. c4 {[%emt 0:13:27]} dxc4 {[%emt 0:02:12]} 16. Bxc4 {[%emt 0:01:16]} Be6 {[%emt 0:01:52]} 17. Bxe6 {[%emt 0:03:25]} Rxe6 {[%emt 0:00:06]} 18. Nd3 {[%emt 0:03:17]} Bxf4 {[%emt 0:06:31]} 19. Nxf4 {[%emt 0:01:32]} Re7 {[%emt 0:01:40]} 20. Rfc1 {[%emt 0:02:39]} Rd8 {[%emt 0:04:18]} 21. a4 {[%emt 0:08:15]} Nd5 {[%emt 0:02:40]} 22. Nd3 {[%emt 0:03:35]} a5 {[%emt 0:04:05]} 23. Rab1 {[%emt 0:04:50]} Rd6 {[%emt 0:04:39]} 24. Qc5 {[%emt 0:20:47]} b6 {[%emt 0:06:07]} 25. Qc4 {[%emt 0:03:33]} h5 {[%emt 0:04:42]} 26. Rb2 {[%emt 0:07:03]} Ree6 {[%emt 0:03:46]} 27. Re2 {[%emt 0:06:44]} Qe7 {[%emt 0:03:31]} 28. Rce1 {[%emt 0:01:13]} Qh4 {[%emt 0:03:12]} 29. Ne5 {[%emt 0:04:26]} Rxe5 {[%emt 0:01:04]} 30. e4 {[%emt 0:02:45]} Nf4 {[%emt 0:01:44]} 31. dxe5 {[%emt 0:02:03]} Rg6 {[%emt 0:00:02]} 32. f3 {[%emt 0:01:30]} Nxh3+ {[%emt 0:00:36]} 33. Kf1 {[%emt 0:00:40]} Nf4 {[%emt 0:00:01]} 34. Rd2 {[%emt 0:00:59]} Qh1+ {[%emt 0:00:13]} 0-1

[Event "FIDE WYCC Girls U18 2023"]
[Site "Montesilvano"]
[Date "2023.11.16"]
[Round "4.2"]
[White "Allahverdiyeva, Ayan"]
[Black "Matute Escobar, Roxanny"]
[Result "1-0"]
[ECO "B38"]
[WhiteElo "2152"]
[BlackElo "1995"]
[Annotator "RC"]
[PlyCount "57"]
[EventDate "2023.11.13"]
[EventType "swiss"]
[EventCountry "ITA"]
[SourceTitle "playchess.com"]
[Source "ChessBase"]
[SourceQuality "1"]
[TimeControl "40/5400+30:1800+30"]

1. e4 {[%emt 0:00:12]} c5 {[%emt 0:00:08]} 2. Nf3 {[%emt 0:00:10]} g6 {[%emt 0:00:07]} 3. d4 {[%emt 0:00:10]} cxd4 {[%emt 0:00:06]} 4. Nxd4 {[%emt 0:00:03]} Bg7 {[%emt 0:00:06]} 5. c4 {[%emt 0:01:00]} Nc6 {[%emt 0:00:11]} 6. Be3 {[%emt 0:00:30]} Nf6 {[%emt 0:00:45]} 7. f3 {[%emt 0:03:59]} d6 {[%emt 0:01:04]} 8. Be2 {[%emt 0:02:34]} O-O {[%emt 0:00:18]} 9. Qd2 {[%emt 0:02:16]} Bd7 {[%emt 0:01:55]} 10. O-O {[%emt 0:00:26]} Nxd4 {[%emt 0:01:43]} 11. Bxd4 {[%emt 0:00:06]} Bc6 {[%emt 0:03:58]} 12. b4 {[%emt 0:01:26]} b6 {[%emt 0:00:32]} 13. Nc3 e6 {[%emt 0:05:57]} 14. Rac1 {[%emt 0:15:28]} Qe7 {[%emt 0:01:57]} 15. Rfe1 {[%emt 0:05:43]} Nh5 {[%emt 0:06:48]} 16. Be3 {[%emt 0:04:06]} f5 {[%emt 0:04:43]} 17. exf5 {[%emt 0:01:28]} gxf5 {[%emt 0:00:23]} 18. Bg5 {[%emt 0:01:09]} Bf6 {[%emt 0:09:28]} 19. Bh6 {[%emt 0:00:59]} Bg7 {[%emt 0:12:04]} 20. c5 {[%emt 0:13:04]} bxc5 {[%emt 0:17:22]} 21. Bc4 {[%emt 0:03:10]} Be5 {[%emt 0:03:46]} 22. bxc5 {[%emt 0:06:27]} f4 {[%emt 0:06:30]} 23. Bxf8 {[%emt 0:06:05]} Kxf8 {[%emt 0:01:16]} 24. cxd6 {[%emt 0:06:48]} Bxd6 {[%emt 0:08:39]} 25. Bxe6 {[%emt 0:01:00]} Bc5+ {[%emt 0:00:33]} 26. Kh1 {[%emt 0:01:54]} Qh4 {[%emt 0:00:41]} 27. Ne4 {[%emt 0:05:51]} Rd8 {[%emt 0:02:55]} 28. Qc3 {[%emt 0:01:15]} Bd4 {[%emt 0:05:55]} 29. Qxc6 {[%emt 0:00:49]} 1-0